bitfinex-derivatives/quotes_ETHF0:USTF0_20240905
["timestamp","ask_amount","ask_price","bid_price","bid_amount"]
[1725574277500,6.86591144,2365.6,2365.5,6.02004]
[1725574278711,6.86591144,2365.6,2365.5,5.5972]
[1725574279509,3.6765,2365.6,2365.5,1.79284]
[1725574279718,3.6765,2365.6,2365.5,6.02004]
[1725574279900,0.4687,2365.6,2365.5,6.02004]
[1725574280100,2.66458846,2365.6,2365.5,6.02004]
[1725574280512,0.4687,2365.6,2365.5,6.25214]
[1725574281406,2.1156708,2365.6,2365.5,6.25214]
[1725574281910,0.4687,2365.6,2365.5,6.25214]
[1725574282411,2.66458846,2365.6,2365.5,6.25214]
[1725574282609,2.11568295,2365.6,2365.5,6.25214]
[1725574282810,2.11567137,2365.6,2365.5,6.25214]
[1725574283017,1.64697137,2365.6,2365.5,7.30926]
[1725574283512,1.64697137,2365.6,2365.5,6.25214]
[1725574285120,2.63768846,2365.7,2365.6,0.42283]
[1725574293311,0.4418,2365.7,2365.6,0.42283]
[1725574293514,2.63774038,2365.7,2365.6,0.42283]
[1725574293919,2.63774038,2365.7,2365.6,4.65003]
[1725574295718,2.63774038,2365.7,2365.6,0.42283]
[1725574298722,0.4418,2365.7,2365.6,0.42283]
[1725574298922,3.18491144,2365.7,2365.6,0.42283]
[1725574299118,2.63798497,2365.7,2365.6,0.42283]
[1725574299323,2.63798797,2365.7,2365.6,0.42283]
[1725574299627,2.6379914,2365.7,2365.6,0.42283]
[1725574299823,2.63860032,2365.7,2365.6,0.42283]
[1725574300021,0.4418,2365.7,2365.6,0.42283]
[1725574300421,3.18491144,2365.7,2365.6,0.42283]
[1725574300732,2.63909083,2365.7,2365.6,0.42283]
[1725574300925,2.63909083,2365.7,2365.3,4.62747942]
[1725574300926,2.63909083,2365.7,2365.3,1.33237942]
[1725574301122,1.64775291,2365.4,2365.3,0.65471055]
[1725574301316,1.09862717,2365.4,2365.3,3.12525942]
[1725574301516,1.09862717,2365.4,2365.3,16.52495874]
[1725574301921,1.09862717,2365.4,2365.3,14.41046942]
[1725574302320,2.08915291,2365.5,2365.4,0.42286]
[1725574302523,0.4414,2365.5,2365.4,4.65086]
[1725574302724,2.63869083,2365.5,2365.4,0.42286]
[1725574306321,0.4414,2365.5,2365.4,0.42286]
[1725574311328,3.18451144,2365.5,2365.4,0.42286]
[1725574311528,0.4414,2365.5,2365.4,0.42286]
[1725574311723,3.18451144,2365.5,2365.4,0.42286]
[1725574311926,0.4414,2365.5,2365.4,0.42286]
[1725574312934,3.18451144,2365.5,2365.4,1.79286]
[1725574313125,0.4414,2365.5,2365.4,1.79286]
[1725574313326,3.18451144,2365.5,2365.4,1.79286]
[1725574313729,0.4414,2365.5,2365.4,1.79286]
[1725574314838,2.64071783,2365.5,2365.4,1.79286]
[1725574315224,0.4414,2365.5,2365.4,1.79286]
[1725574315733,2.6407607,2365.5,2365.4,1.79286]
[1725574315931,2.64069826,2365.5,2365.4,1.79286]
[1725574316537,0.4414,2365.5,2365.4,1.79286]
[1725574323036,3.18451144,2365.5,2365.4,1.79286]
[1725574324134,0.4414,2365.5,2365.4,1.79286]
[1725574324933,3.18451144,2365.5,2365.4,1.79286]
[1725574325840,7.41171144,2365.5,2365.4,0.42286]
[1725574326245,7.41171144,2365.5,2365.3,0.42287]
[1725574326442,2.61269451,2365.4,2365.3,0.42287]
[1725574328240,3.15631144,2365.4,2365.3,0.42287]
[1725574329742,2.61246137,2365.4,2365.3,0.42287]
[1725574330141,3.15631144,2365.4,2365.3,0.42287]
[1725574331043,3.15631144,2365.4,2365.2,0.42288]
[1725574331345,2.61774826,2365.3,2365.2,0.42288]
[1725574331550,0.4188,2365.3,2365.2,0.42288]
[1725574332047,2.61775264,2365.3,2365.2,0.42288]
[1725574332345,6.36971144,2365.3,2365.0,0.42293]
[1725574332650,3.16601144,2365.2,2364.9,0.42293]
[1725574332848,2.19850575,2365.0,2364.8,1.37]
[1725574333035,2.19850575,2365.0,2364.9,0.42295]
[1725574335546,2.19850575,2365.0,2364.8,0.42296]
[1725574335852,1.64771368,2364.9,2364.8,0.42296]
[1725574337839,2.19850575,2365.0,2364.8,0.42296]
[1725574338038,2.19850575,2364.9,2364.8,0.42296]
[1725574339160,2.19850575,2365.0,2364.8,0.42296]
[1725574339452,2.19850575,2365.0,2364.9,0.42295]
[1725574339652,2.19850575,2365.0,2364.8,0.42296]
[1725574340553,2.19850575,2365.0,2364.6,1.69422939]
[1725574340752,1.09731701,2364.7,2364.6,1.69422939]
[1725574341253,1.09731701,2364.7,2364.6,2.11723939]
[1725574342150,1.09731701,2364.8,2364.7,0.42299]
[1725574342540,1.52721701,2364.8,2364.7,0.42299]
[1725574344552,5.75601701,2364.8,2364.6,0.423]
[1725574344749,0.4312,2364.7,2364.6,0.423]
[1725574345255,0.8661,2364.7,2364.6,0.423]
[1725574347555,0.4349,2364.7,2364.6,0.423]
[1725574347748,1.09731701,2364.8,2364.7,0.42299]
[1725574347955,1.97971701,2364.9,2364.8,0.42297]
[1725574348350,1.54851701,2364.9,2364.8,0.42297]
[1725574348557,1.54851701,2364.9,2364.8,1.79297]
[1725574349251,1.09731701,2364.9,2364.8,1.79297]
[1725574349455,1.09731701,2365.0,2364.9,0.42295]
[1725574349656,1.09731701,2365.1,2365.0,1.48027]
[1725574349851,1.64597551,2365.2,2365.0,2.85027]
[1725574349852,1.09731701,2365.2,2365.0,2.85027]
[1725574350052,1.09731701,2365.2,2365.1,1.48022]
[1725574352262,0.00633499,2365.3,2365.2,0.4229]
[1725574354262,0.00633499,2365.3,2365.2,1.48015]
[1725574354762,1.65227909,2365.3,2365.2,1.48015]
[1725574354961,0.00633499,2365.3,2365.2,1.48015]
[1725574355170,6.85572074,2365.3,2365.0,0.42292]
[1725574355372,6.84940575,2365.2,2364.9,0.42294]
[1725574355563,1.64579892,2365.0,2364.9,0.42294]
[1725574355968,2.08829892,2365.0,2364.9,0.42294]
[1725574356375,6.31709892,2365.0,2364.8,0.42295]
[1725574356569,1.09718702,2364.9,2364.8,0.42295]
[1725574357070,5.32598702,2364.9,2364.8,0.42295]
[1725574357472,1.53968702,2365.0,2364.9,0.42295]
[1725574357778,2.08829892,2365.0,2364.9,0.42295]
[1725574362784,2.08869944,2365.0,2364.9,0.42295]
[1725574363175,0.4425,2365.0,2364.9,0.42295]
[1725574365378,2.64100575,2365.0,2364.9,0.42295]
[1725574365579,0.4425,2365.0,2364.9,0.42295]
[1725574365781,2.64100575,2365.0,2364.9,0.42295]
[1725574367888,2.64100575,2365.0,2364.6,2.65654614]
[1725574368087,1.09776786,2364.8,2364.6,2.65654614]
[1725574368288,0.4267,2364.7,2364.6,2.65654614]
[1725574368589,0.4267,2364.7,2364.6,3.07955614]
[1725574368791,0.4267,2364.7,2364.6,7.30835614]
[1725574370091,0.4267,2364.7,2364.6,3.07955614]
[1725574371197,1.52446786,2364.7,2364.6,3.07955614]
[1725574375091,1.09776786,2364.7,2364.6,8.36587614]
[1725574375391,1.64665179,2364.8,2364.7,1.48047]
[1725574376288,1.64665179,2364.8,2364.7,5.70927]
[1725574376484,1.64665179,2364.8,2364.7,8.13675]
[1725574376894,0.04689719,2364.9,2364.8,1.4804]
[1725574377096,2.74311144,2365.1,2365.0,0.42293]
[1725574377097,2.63240575,2365.1,2365.0,0.42293]
[1725574377302,2.63240575,2365.1,2365.0,1.48027]
[1725574378295,2.63240575,2365.1,2365.0,0.42293]
[1725574378490,0.4339,2365.1,2365.0,0.42293]
[1725574378690,3.17701144,2365.1,2365.0,0.42293]
[1725574378891,3.17701144,2365.1,2364.9,0.42294]
[1725574379094,3.17701144,2365.1,2364.8,1.37]
[1725574379298,3.17701144,2365.1,2364.8,1.79297]
[1725574379299,2.19854926,2364.9,2364.8,1.79297]
[1725574380195,2.19854926,2364.9,2364.8,0.42297]
[1725574380401,2.64764926,2364.9,2364.8,0.42297]
[1725574380595,2.64764926,2364.9,2364.6,2.47054887]
[1725574380596,2.64764926,2364.9,2364.7,0.42297]
[1725574380795,0.419,2364.8,2364.7,0.42297]
[1725574381491,2.61754926,2364.8,2364.7,0.42297]
[1725574382901,2.61754926,2364.8,2364.6,1.793]
[1725574383092,0.4338,2364.7,2364.6,1.793]
[1725574383288,0.4338,2364.7,2364.6,0.423]
[1725574383494,0.4338,2364.7,2364.6,1.793]
[1725574389699,0.4338,2364.7,2364.6,0.423]
[1725574392598,2.63234926,2364.7,2364.6,0.423]
[1725574392998,0.4338,2364.7,2364.6,0.423]
[1725574394111,0.4338,2364.7,2364.6,1.793]
[1725574394302,2.63234926,2364.7,2364.6,1.793]
[1725574394605,0.4338,2364.7,2364.6,2.89354887]
[1725574395102,0.4338,2364.7,2364.6,1.793]
[1725574396906,0.4338,2364.7,2364.6,2.89354887]
[1725574397105,0.4338,2364.7,2364.6,1.793]
[1725574398313,2.63234926,2364.7,2364.6,1.793]
[1725574410320,0.4338,2364.7,2364.6,1.793]
[1725574410522,2.63234926,2364.7,2364.6,1.793]
[1725574412322,0.4338,2364.7,2364.6,1.793]
[1725574412512,2.63234926,2364.7,2364.6,1.793]
[1725574414222,0.4338,2364.7,2364.6,1.793]
[1725574414523,0.4338,2364.7,2364.6,1.9045]
[1725574415017,2.19854926,2364.9,2364.6,3.63956887]
[1725574415423,2.19854926,2364.9,2364.8,0.42297]
[1725574415925,2.74311144,2365.0,2364.8,0.42297]
[1725574416423,2.19895052,2364.9,2364.8,0.42296]
[1725574416718,2.74311144,2365.0,2364.8,0.42296]
[1725574418018,2.19896209,2364.9,2364.8,0.42296]
[1725574418212,2.19897389,2364.9,2364.8,0.42296]
[1725574418725,2.19891168,2364.9,2364.8,0.42296]
[1725574419322,2.74311144,2365.0,2364.8,0.42296]
[1725574419519,2.19893608,2364.9,2364.8,0.42296]
[1725574420022,2.74311144,2365.0,2364.8,0.42296]
[1725574420226,2.19894443,2364.9,2364.8,0.42296]
[1725574420927,2.19894443,2364.9,2364.8,1.79296]
[1725574423025,2.19894443,2364.9,2364.8,0.42296]
[1725574423226,2.74311144,2365.0,2364.8,0.42296]
[1725574423916,5.95680198,2364.9,2364.8,0.42296]
[1725574425220,3.2078,2364.9,2364.8,0.42296]
[1725574426019,5.95745866,2364.9,2364.8,0.42296]
[1725574426325,2.74965866,2364.9,2364.8,0.42296]
[1725574426721,3.2078,2364.9,2364.8,0.42296]
[1725574428631,2.74946752,2365.0,2364.7,2.42745]
[1725574428832,2.19959424,2364.9,2364.8,0.42297]
[1725574431725,2.19959424,2365.0,2364.9,0.42295]
[1725574432123,4.01746752,2365.1,2365.0,0.42293]
[1725574436737,1.268,2365.1,2365.0,0.42293]
[1725574438531,3.46646721,2365.1,2365.0,0.42293]
[1725574439032,3.46646955,2365.1,2365.0,0.42293]
[1725574439436,1.268,2365.1,2365.0,0.42293]
[1725574439627,3.46637561,2365.1,2365.0,0.42293]
[1725574439826,4.01746752,2365.1,2365.0,0.42293]
[1725574440335,1.268,2365.1,2365.0,0.42293]
[1725574441839,3.46631145,2365.1,2365.0,0.42293]
[1725574442335,1.268,2365.1,2365.0,0.42293]
[1725574444637,4.01746752,2365.1,2365.0,0.42293]
[1725574444832,1.268,2365.1,2365.0,0.42293]
[1725574447236,3.46655014,2365.1,2365.0,0.42293]
[1725574447941,3.46655014,2365.1,2365.0,1.79293]
[1725574448953,1.268,2365.1,2365.0,1.79293]
[1725574449734,3.46655014,2365.1,2365.0,1.79293]
[1725574451644,2.9169705,2365.1,2365.0,1.79293]
[1725574451840,1.268,2365.1,2365.0,1.79293]
[1725574452051,3.46655014,2365.1,2365.0,1.79293]
[1725574452348,2.74946752,2365.2,2365.1,1.48022]
[1725574452349,1.15174039,2365.2,2365.1,1.48022]
[1725574452544,0.00633499,2365.3,2365.2,0.4229]
[1725574452946,0.00633499,2365.3,2365.2,4.6509]
[1725574453350,0.00633499,2365.3,2365.2,11.70815]
[1725574453546,0.00633499,2365.3,2365.2,12.80869887]
[1725574453750,0.00633499,2365.3,2365.2,14.92316746]
[1725574453956,0.00633499,2365.3,2365.2,15.47997674]
[1725574454151,0.00633499,2365.3,2365.2,12.81568866]
[1725574454843,0.00633499,2365.3,2365.2,14.93006742]
[1725574455248,0.00633499,2365.3,2365.2,12.81568866]
[1725574455450,0.00633499,2365.3,2365.2,14.93005022]
[1725574455756,0.00633499,2365.3,2365.2,12.81568866]
[1725574456151,0.4083,2365.4,2365.3,0.42288]
[1725574456354,0.4083,2365.4,2365.3,9.22868]
[1725574456751,0.4083,2365.4,2365.3,10.33621866]
[1725574457156,0.40883499,2365.7,2365.6,0.42283]
[1725574457355,0.40883499,2365.7,2365.6,2.00322431]
[1725574457554,0.81313499,2365.7,2365.6,2.00322431]
[1725574457856,0.81313499,2365.7,2365.6,5.21102431]
[1725574458643,0.81313499,2365.7,2365.6,9.43822431]
[1725574459355,0.81313499,2365.7,2365.6,10.49529431]
[1725574459652,0.81313499,2365.7,2365.6,9.12529431]
[1725574459853,0.098,2366.0,2365.9,0.42277]
[1725574460052,0.114,2366.2,2365.9,0.42277]
[1725574460053,0.098,2366.3,2366.2,0.42272]
[1725574460257,0.8161,2366.4,2366.3,0.4227]
[1725574460849,0.8161,2366.4,2366.3,1.7927]
[1725574461359,0.8161,2366.4,2366.3,6.0183]
[1725574464654,0.8161,2366.4,2366.3,7.07506]
[1725574465363,0.00633499,2366.6,2366.5,0.42267]
[1725574465562,0.00633499,2366.6,2366.5,1.79267]
[1725574465767,0.00633499,2366.6,2366.5,5.00047]
[1725574465969,0.00633499,2366.6,2366.5,6.05714]
[1725574467652,0.00633499,2366.6,2366.5,10.28274]
[1725574468767,0.00633499,2366.6,2366.5,10.70594]
[1725574469361,0.00633499,2366.6,2366.5,10.28274]
[1725574470066,0.00633499,2366.6,2366.5,10.70594]
[1725574472160,0.00633499,2366.6,2366.5,10.93803034]
[1725574472771,3.4208,2367.4,2367.1,0.42256]
[1725574472967,0.4135,2367.3,2367.1,0.63643786]
[1725574473662,0.4135,2367.3,2367.2,0.42254]
[1725574474057,1.226,2367.3,2367.2,0.42254]
[1725574474368,1.226,2367.3,2367.2,0.63121937]
[1725574474666,1.226,2367.3,2367.2,2.00121937]
[1725574476167,1.226,2367.3,2367.1,0.42254]
[1725574476371,1.226,2367.3,2367.2,1.37]
[1725574476562,1.64852,2367.3,2367.0,0.42889499]
[1725574476868,1.64852,2367.3,2367.1,1.37]
[1725574477266,5.87332,2367.3,2367.1,1.37]
[1725574477666,5.87332,2367.3,2367.1,1.79255]
[1725574478067,5.87332,2367.3,2366.6,5.3006]
[1725574478068,0.42258,2367.0,2366.9,1.37]
[1725574479968,0.42258,2367.0,2366.9,1.79259]
[1725574480165,0.42261,2366.8,2366.7,1.79895499]
[1725574480372,3.63041,2366.8,2366.7,0.42895499]
[1725574480567,0.42267,2366.5,2366.4,0.098]
[1725574480781,3.2078,2366.5,2366.2,0.42271]
[1725574480977,0.42271,2366.3,2366.1,1.79273]
[1725574481478,0.419,2366.2,2366.1,1.79273]
[1725574481782,4.6454,2366.2,2366.1,1.79273]
[1725574483678,5.0578,2366.2,2366.1,1.79273]
[1725574487582,0.8314,2366.2,2366.1,1.79273]
[1725574501383,3.2078,2366.5,2366.1,1.37]
[1725574501582,0.3572,2366.4,2366.3,1.79269]
[1725574502182,0.3572,2366.4,2366.3,0.42269]
[1725574502485,0.3572,2366.4,2366.3,1.79269]
[1725574504183,0.3572,2366.4,2366.3,2.84945]
[1725574504377,2.62117014,2366.8,2366.6,0.42264]
[1725574504578,2.62118014,2366.8,2366.6,0.42264]
[1725574504973,0.42263,2366.8,2366.6,0.42264]
[1725574505175,2.62118014,2366.8,2366.6,0.42264]
[1725574505390,0.42263,2366.8,2366.6,0.42264]
[1725574505692,2.62118014,2366.8,2366.6,0.42264]
[1725574507992,0.42263,2366.8,2366.6,0.42264]
[1725574508686,2.62118014,2366.8,2366.6,0.42264]
[1725574508884,3.38616014,2366.9,2366.7,0.42263]
[1725574509078,2.19855014,2366.8,2366.6,0.42264]
[1725574510089,3.38616014,2366.9,2366.6,0.42264]
[1725574512391,1.64513837,2366.8,2366.7,0.42263]
[1725574512786,2.41013837,2366.9,2366.7,0.42263]
[1725574513702,1.64513837,2366.8,2366.7,0.42263]
[1725574514984,3.38615014,2366.9,2366.7,0.42263]
[1725574515994,2.96355014,2366.9,2366.8,0.42261]
[1725574516690,3.38615014,2366.9,2366.7,0.42262]
[1725574516996,1.64522627,2366.8,2366.7,0.42262]
[1725574517294,3.38616014,2366.9,2366.7,0.42262]
[1725574517483,3.38616014,2366.9,2366.8,0.42261]
[1725574517889,3.38144965,2366.9,2366.8,0.42261]
[1725574518290,1.18761,2366.9,2366.8,0.42261]
[1725574518593,3.3815157,2366.9,2366.8,0.42261]
[1725574518897,1.18761,2366.9,2366.8,0.42261]
[1725574519392,3.38203279,2366.9,2366.8,0.42261]
[1725574519596,1.18761,2366.9,2366.8,0.42261]
[1725574519894,3.38212696,2366.9,2366.8,0.42261]
[1725574520090,1.18761,2366.9,2366.8,0.42261]
[1725574520403,3.38278551,2366.9,2366.8,0.42261]
[1725574520590,2.96017551,2366.9,2366.8,0.42261]
[1725574521906,2.4120919,2366.9,2366.8,0.42261]
[1725574522094,2.96017551,2366.9,2366.8,0.42261]
[1725574522289,0.765,2366.9,2366.8,0.42261]
[1725574522695,0.765,2366.9,2366.8,1.79261]
[1725574523091,0.765,2366.9,2366.8,2.84915]
[1725574524097,2.96017551,2366.9,2366.8,1.79261]
[1725574526704,2.96017551,2366.9,2366.8,2.16821]
[1725574527200,0.3905,2366.9,2366.8,3.22475]
[1725574527400,2.19517551,2367.0,2366.9,0.42259]
[1725574527593,2.19517551,2367.0,2366.9,0.80989]
[1725574528199,2.19517551,2367.1,2367.0,0.42258]
[1725574532005,3.12776752,2367.2,2367.0,0.42258]
[1725574532204,3.55030752,2367.2,2367.0,0.42258]
[1725574532510,3.12776752,2367.2,2367.1,0.42256]
[1725574532712,3.55030752,2367.2,2367.0,0.42256]
[1725574532912,3.55030752,2367.2,2367.1,0.42256]
[1725574533213,3.12776752,2367.2,2367.0,0.42257]
[1725574533511,3.17202752,2367.1,2367.0,0.42257]
[1725574534103,0.42256,2367.1,2367.0,0.42257]
[1725574534297,6.33556752,2367.2,2366.8,1.7456]
[1725574534500,1.6474704,2366.9,2366.8,1.7456]
[1725574534910,2.0072704,2366.9,2366.8,1.7456]
[1725574535406,2.0072704,2366.9,2366.8,2.16821]
[1725574536204,1.6474704,2366.9,2366.8,2.16821]
[1725574541603,2.1966272,2367.0,2366.8,1.7456]
[1725574541811,2.1966272,2367.0,2366.9,0.42259]
[1725574549206,3.13946752,2367.1,2366.9,0.42259]
[1725574549408,3.13946752,2367.1,2367.0,0.42258]
[1725574550306,0.39,2367.1,2367.0,0.42258]
[1725574550508,3.13865503,2367.1,2367.0,0.42258]
[1725574551006,0.39,2367.1,2367.0,0.42258]
[1725574552917,3.13883969,2367.1,2367.0,0.42258]
[1725574554410,0.39,2367.1,2367.0,0.42258]
[1725574555815,3.13945291,2367.1,2367.0,0.42258]
[1725574556209,0.39,2367.1,2367.0,0.42258]
[1725574558109,3.14005747,2367.1,2367.0,0.42258]
[1725574558307,0.39,2367.1,2367.0,1.79258]
[1725574558513,2.20016234,2367.3,2367.0,12.01738]
[1725574558717,2.20016234,2367.3,2367.2,1.79254]
[1725574559115,3.57113499,2367.4,2367.3,0.42252]
[1725574559116,5.77129733,2367.4,2367.3,0.42252]
[1725574559315,5.77129733,2367.4,2367.3,0.63644374]
[1725574559512,5.77129733,2367.4,2367.3,0.99464374]
[1725574559716,3.21413499,2367.4,2367.3,5.21864374]
[1725574560019,0.00633499,2367.4,2367.3,5.21864374]
[1725574560220,2.20649733,2367.4,2367.3,5.21864374]
[1725574561315,0.00633499,2367.4,2367.3,5.21864374]
[1725574561528,1.65654237,2367.4,2367.3,5.21864374]
[1725574564019,5.88054237,2367.4,2367.2,3.2078]
[1725574564324,6.42239602,2367.3,2367.2,1.37]
[1725574564521,6.97405747,2367.3,2367.2,1.37]
[1725574567519,6.97405747,2367.3,2367.2,1.79254]
[1725574569718,4.224,2367.3,2367.2,1.79254]
[1725574569915,7.33165747,2367.3,2367.2,1.79254]
[1725574570531,3.10765747,2367.3,2367.2,1.99980888]
[1725574570832,2.55630639,2367.3,2367.2,1.99980888]
[1725574571029,2.55630639,2367.3,2367.2,2.36670888]
[1725574571727,2.19870639,2367.3,2367.2,2.73980888]
[1725574571931,2.19870639,2367.3,2367.2,2.53254]
[1725574572130,1.64909206,2367.3,2367.2,2.53254]
[1725574572322,1.64909206,2367.3,2367.2,6.75654]
[1725574572524,1.64909206,2367.3,2367.2,6.97174009]
[1725574573028,0.00633499,2367.4,2367.3,0.42252]
[1725574573225,1.65538913,2367.4,2367.3,0.42252]
[1725574573424,1.65538913,2367.4,2367.3,5.70283]
[1725574574520,1.65538913,2367.4,2367.3,4.64652]
[1725574574930,2.20504138,2367.4,2367.3,0.42252]
[1725574576228,0.00633499,2367.4,2367.3,0.42252]
[1725574576420,1.6548029,2367.4,2367.3,0.42252]
[1725574577424,0.00633499,2367.4,2367.3,0.42252]
[1725574578129,1.6548029,2367.4,2367.3,0.42252]
[1725574579322,2.0452029,2367.4,2367.3,0.42252]
[1725574580434,0.39673499,2367.4,2367.3,1.37]
[1725574580620,2.59544138,2367.4,2367.3,1.37]
[1725574580825,2.59544138,2367.4,2367.3,1.79252]
[1725574581025,0.39673499,2367.4,2367.3,1.79252]
[1725574581230,4.62073499,2367.4,2367.3,1.37]
[1725574581434,6.81944138,2367.4,2367.3,1.37]
[1725574581936,5.04324499,2367.4,2367.3,1.37]
[1725574583332,5.04324499,2367.4,2367.3,1.79252]
[1725574583629,7.79329246,2367.4,2367.2,0.42253]
[1725574583935,2.93416188,2367.3,2367.2,0.42253]
[1725574585030,2.93416188,2367.3,2367.2,1.79253]
[1725574588540,3.35668188,2367.3,2367.2,1.37]
[1725574588734,2.93416188,2367.3,2367.2,1.79254]
[1725574589337,2.93416188,2367.3,2367.2,0.42254]
[1725574589534,2.93416188,2367.3,2367.2,1.79254]
[1725574590545,0.7368,2367.3,2367.2,1.79254]
[1725574590738,3.9446,2367.3,2367.1,0.42888499]
[1725574591035,7.11717747,2367.3,2367.2,1.37]
[1725574592241,7.11717747,2367.3,2367.2,1.79254]
[1725574592242,3.90937747,2367.3,2367.2,1.79254]
[1725574593857,2.75005747,2367.3,2367.2,2.8489]
[1725574594051,0.00633499,2367.4,2367.3,1.47883]
[1725574594356,0.00633499,2367.4,2367.3,8.12914]
[1725574594656,0.00633499,2367.4,2367.3,7.07283]
[1725574595244,0.00633499,2367.4,2367.3,6.01652]
[1725574595646,1.64883918,2367.6,2367.5,0.42249]
[1725574595855,1.64881029,2367.7,2367.6,0.42247]
[1725574596061,2.198274,2367.9,2367.6,7.4318]
[1725574596062,1.64881029,2367.9,2367.6,7.4318]
[1725574596359,2.198274,2368.0,2367.9,0.42242]
[1725574596360,1.64881029,2368.0,2367.9,0.42242]
[1725574597449,1.64881029,2368.1,2367.9,0.42242]
[1725574597756,1.64881029,2368.1,2368.0,1.7924]
[1725574597947,8.10173123,2368.2,2368.0,1.7924]
[1725574598352,8.10173123,2368.2,2368.0,1.37]
[1725574598554,8.10173123,2368.2,2367.7,0.7208]
[1725574598757,1.64761876,2368.0,2367.7,0.78734]
[1725574598955,1.64761876,2368.0,2367.8,0.42243]
[1725574599254,2.198274,2368.1,2367.8,0.42243]
[1725574599255,2.03651876,2367.9,2367.8,0.42243]
[1725574599451,0.3889,2367.9,2367.8,0.42243]
[1725574599960,0.3889,2367.9,2367.8,1.79243]
[1725574605261,1.64761876,2368.0,2367.9,0.42242]
[1725574605465,1.64761876,2368.1,2367.9,0.42242]
[1725574605663,1.64761876,2368.1,2368.0,1.37]
[1725574605957,1.64761876,2368.1,2368.0,1.7924]
[1725574606164,2.04235375,2368.2,2368.1,0.42238]
[1725574606364,0.39473499,2368.2,2368.1,0.42238]
[1725574606556,2.04140518,2368.2,2368.1,0.78598]
[1725574607959,1.65300518,2368.2,2368.1,0.78598]
[1725574608661,0.00633499,2368.2,2368.1,0.78598]
[1725574608860,1.65300518,2368.2,2368.1,0.78598]
[1725574609060,0.00633499,2368.2,2368.1,0.78598]
[1725574609261,1.65300518,2368.2,2368.1,0.78598]
[1725574609456,0.00633499,2368.2,2368.1,0.78598]
[1725574609657,1.65300518,2368.2,2368.1,0.78598]
[1725574609865,0.00633499,2368.2,2368.1,0.78598]
[1725574615366,0.00633499,2368.2,2368.1,5.00838]
[1725574616658,0.00633499,2368.2,2368.1,0.78598]
[1725574617065,0.00633499,2368.2,2368.1,1.15718]
[1725574617369,0.00633499,2368.2,2368.1,6.43554]
[1725574617566,0.00633499,2368.2,2368.1,12.43554]
[1725574618566,0.00633499,2368.2,2368.1,13.4915]
[1725574618769,0.4861,2368.6,2368.5,0.42231]
[1725574618974,0.4861,2368.6,2368.5,1.79231]
[1725574618975,0.3881,2368.6,2368.5,1.79231]
[1725574620174,2.02620518,2368.8,2368.7,0.42227]
[1725574620478,2.02620518,2368.8,2368.7,1.79227]
[1725574620479,2.41970518,2368.8,2368.7,1.79227]
[1725574621077,0.77303499,2368.8,2368.7,1.79227]
[1725574626683,0.42231,2368.5,2368.4,0.42232]
[1725574626880,0.42231,2368.5,2368.4,1.37]
[1725574627095,1.47815,2368.4,2368.3,0.00633499]
[1725574627379,6.69228937,2368.4,2368.3,0.00633499]
[1725574627579,10.91468937,2368.4,2368.3,0.00633499]
[1725574629378,9.27275,2368.4,2368.3,0.00633499]
[1725574629978,9.85930327,2368.4,2368.3,0.00633499]
[1725574630477,8.21693,2368.4,2368.3,0.00633499]
[1725574630684,9.85960923,2368.4,2368.3,0.00633499]
[1725574630983,9.85957846,2368.4,2368.3,0.00633499]
[1725574632079,10.22687846,2368.4,2368.3,0.00633499]
[1725574632278,8.58423,2368.4,2368.3,0.00633499]
[1725574632480,10.782504,2368.4,2368.3,0.00633499]
[1725574634684,6.560104,2368.4,2368.3,0.00633499]
[1725574635584,10.782504,2368.4,2368.3,0.00633499]
[1725574635889,0.7317,2368.4,2368.3,0.42867499]
[1725574636087,2.37592428,2368.4,2368.3,0.42867499]
[1725574636889,0.7317,2368.4,2368.3,0.42867499]
[1725574637091,2.79873285,2368.4,2368.3,0.42867499]
[1725574637291,2.929974,2368.4,2368.3,0.42867499]
[1725574637589,1.15403,2368.4,2368.3,0.42867499]
[1725574637886,3.352304,2368.4,2368.3,0.42867499]
[1725574639091,2.929974,2368.4,2368.3,0.42867499]
[1725574639390,3.48175747,2368.4,2368.3,0.42867499]
[1725574639594,1.47834,2368.1,2368.0,0.098]
[1725574639890,1.47834,2368.1,2368.0,1.37]
[1725574639891,3.67421615,2368.1,2368.0,1.37]
[1725574640190,5.70154,2368.1,2368.0,1.37]
[1725574640381,8.81558519,2368.1,2368.0,1.37]
[1725574640983,0.42242,2367.9,2367.8,0.00633499]
[1725574641281,0.42247,2367.6,2367.5,0.098]
[1725574641486,2.06931899,2367.6,2367.4,3.63029]
[1725574641788,2.61826866,2367.6,2367.5,0.42249]
[1725574642088,2.19579866,2367.6,2367.5,0.42249]
[1725574644398,0.3884,2367.6,2367.5,0.42249]
[1725574644895,2.03391425,2367.6,2367.5,0.42249]
[1725574645199,2.03391425,2367.6,2367.5,1.79249]
[1725574645393,2.03367278,2367.6,2367.5,1.79249]
[1725574646584,0.4225,2367.4,2367.3,0.00633499]
[1725574646786,2.06741075,2367.4,2367.3,0.00633499]
[1725574646986,4.224,2367.4,2367.3,0.42885499]
[1725574647186,2.99011434,2367.5,2367.4,0.4225]
[1725574647399,2.99011434,2367.5,2367.4,1.7925]
[1725574647689,0.3744,2367.5,2367.4,1.37]
[1725574647894,2.56761434,2367.5,2367.4,1.37]
[1725574648493,2.99010434,2367.5,2367.4,1.37]
[1725574648798,2.19321434,2367.5,2367.4,1.7925]
[1725574648992,3.60253499,2367.6,2367.5,0.42249]
[1725574649300,5.24647589,2367.6,2367.5,0.42249]
[1725574649693,3.60253499,2367.6,2367.5,0.42249]
[1725574651594,3.21413499,2367.6,2367.5,1.47872]
[1725574651796,3.21413499,2367.6,2367.5,0.42249]
[1725574653393,3.21413499,2367.6,2367.5,4.64649]
[1725574656190,3.21413499,2367.6,2367.5,0.42249]
[1725574656396,3.21413499,2367.6,2367.4,2.1225]
[1725574656397,3.21413499,2367.6,2367.4,2.54499]
[1725574656591,0.365,2367.5,2367.4,2.54499]
[1725574661999,0.365,2367.5,2367.4,1.79249]